bitfinex-derivatives/quotes_BNBF0:USTF0_20250904
["timestamp","ask_amount","ask_price","bid_price","bid_amount"]
[1757001626159,0.72680413,844.29,842.65,3.7186484]
[1757001626160,0.79871772,844.43,843.87,0.79685322]
[1757001626352,0.72670399,844.42,843.87,0.79685322]
[1757001626553,0.72670399,844.42,843.86,0.79685322]
[1757001626752,1.52542171,844.42,843.85,0.79685322]
[1757001626958,0.72670399,844.41,843.84,0.79685322]
[1757001627159,0.72670399,844.4,843.85,0.79685322]
[1757001627357,0.72670399,844.39,843.84,0.79685322]
[1757001627554,0.72670399,844.38,843.85,0.79685322]
[1757001627759,0.72670399,844.37,843.84,0.79685322]
[1757001627953,0.72670399,844.36,843.84,0.79685322]
[1757001628260,0.72670399,844.35,843.84,0.79685322]
[1757001628558,0.72670399,844.34,843.84,0.79685322]
[1757001628859,0.72670399,844.33,843.85,0.79685322]
[1757001629154,0.72670399,844.32,843.85,0.79685322]
[1757001629358,0.72670399,844.31,843.85,0.79685322]
[1757001629659,0.79871772,844.45,843.85,0.79685322]
[1757001629852,0.72646632,844.44,843.85,0.79685322]
[1757001630258,0.72646632,844.44,843.81,0.79685322]
[1757001630559,0.72646632,844.43,843.81,0.79685322]
[1757001630757,0.72646632,844.42,843.81,0.79685322]
[1757001630953,0.72646632,844.41,843.81,0.79685322]
[1757001631153,0.72646632,844.4,843.81,0.79685322]
[1757001631355,0.72646632,844.39,843.81,0.79685322]
[1757001631554,0.72646632,844.38,843.81,0.79685322]
[1757001631858,0.72646632,844.37,843.81,0.79685322]
[1757001632059,0.72646632,844.36,843.81,0.79685322]
[1757001632260,0.72646632,844.35,843.85,0.79685322]
[1757001632460,0.72646632,844.34,843.84,0.79685322]
[1757001632660,0.72646632,844.33,843.84,0.79685322]
[1757001632856,0.79871772,844.46,843.84,0.79685322]
[1757001633061,0.72628965,844.45,843.84,0.79685322]
[1757001633261,0.72628965,844.45,843.85,0.79685322]
[1757001633461,0.72628965,844.44,843.85,0.79685322]
[1757001633760,0.72628965,844.43,843.85,0.79685322]
[1757001633962,0.72628965,844.42,843.85,0.79685322]
[1757001634262,0.72628965,844.41,843.85,0.79685322]
[1757001634559,0.72628965,844.4,843.85,0.79685322]
[1757001634757,0.72628965,844.39,843.85,0.79685322]
[1757001634962,0.72628965,844.38,843.85,0.79685322]
[1757001635163,0.72628965,844.37,843.85,0.79685322]
[1757001635463,0.79871772,844.48,843.85,0.79685322]
[1757001636062,0.79871772,844.48,843.84,0.79685322]
[1757001636660,0.79871772,844.47,843.84,0.79685322]
[1757001637465,0.72615304,844.46,843.84,0.79685322]
[1757001637764,0.79871772,844.48,843.84,0.79685322]
[1757001638860,0.79871772,844.47,843.83,0.79685322]
[1757001639067,0.72612939,844.46,843.83,0.79685322]
[1757001639566,0.72612939,844.46,843.81,0.79685322]
[1757001639860,0.72612939,844.45,843.81,0.79685322]
[1757001640065,0.72612939,844.44,843.81,0.79685322]
[1757001640265,0.72612939,844.43,843.81,0.79685322]
[1757001640464,0.72612939,844.42,843.81,0.79685322]
[1757001640667,0.79871772,844.48,843.81,0.79685322]
[1757001640668,0.72612939,844.41,843.81,0.79685322]
[1757001640866,0.72612939,844.4,843.81,0.79685322]
[1757001641166,0.72612939,844.39,843.81,0.79685322]
[1757001641366,0.72612939,844.38,843.81,0.79685322]
[1757001641563,0.72612939,844.37,843.81,0.79685322]
[1757001641863,0.72612939,844.36,843.82,0.79685322]
[1757001642162,0.72612939,844.35,843.81,0.79685322]
[1757001642365,0.72612939,844.34,843.81,0.79685322]
[1757001642567,0.79871772,844.48,843.81,0.79685322]
[1757001642769,0.72600654,844.47,843.81,0.79685322]
[1757001642968,0.72600654,844.46,843.82,0.79685322]
[1757001643169,0.72600654,844.45,843.82,0.79685322]
[1757001643369,0.72600654,844.44,843.82,0.79685322]
[1757001643569,0.72600654,844.43,843.82,0.79685322]
[1757001643769,0.72600654,844.42,843.82,0.79685322]
[1757001644068,0.72600654,844.41,843.82,0.79685322]
[1757001644265,0.72600654,844.4,843.81,0.79685322]
[1757001644464,0.72600654,844.39,843.81,0.79685322]
[1757001644764,2.6623924,845.45,843.81,0.79685322]
[1757001644765,0.72600654,844.38,843.81,0.79685322]
[1757001644964,0.72600654,844.37,843.81,0.79685322]
[1757001645166,0.72600654,844.36,843.81,0.79685322]
[1757001645370,0.72600654,844.35,843.81,0.79685322]
[1757001645569,0.79871772,844.49,843.81,0.79685322]
[1757001645770,0.7257152,844.48,843.8,0.79685322]
[1757001646171,0.7257152,844.48,843.79,0.79685322]
[1757001646470,0.7257152,844.47,843.78,0.79685322]
[1757001646672,0.7257152,844.46,843.78,0.79685322]
[1757001646868,0.7257152,844.45,843.79,0.79685322]
[1757001647068,0.7257152,844.44,843.79,0.79685322]
[1757001647368,0.7257152,844.43,843.77,0.79685322]
[1757001647573,0.7257152,844.42,843.77,0.79685322]
[1757001647767,0.7257152,844.41,843.77,0.79685322]
[1757001647973,0.7257152,844.4,843.77,0.79685322]
[1757001648172,0.7257152,844.39,843.77,0.79685322]
[1757001648370,0.7257152,844.38,843.77,0.79685322]
[1757001648673,0.7257152,844.37,843.76,0.79685322]
[1757001648874,0.7257152,844.36,843.76,0.79685322]
[1757001649074,0.7257152,844.35,843.76,0.79685322]
[1757001649274,0.79871772,844.52,843.76,0.79685322]
[1757001649474,0.7256279,844.51,843.76,0.79685322]
[1757001651777,0.79871772,844.47,843.76,0.79685322]
[1757001651978,0.79871772,844.45,843.75,0.79685322]
[1757001652177,0.7256279,844.44,843.75,0.79685322]
[1757001652773,1.52434562,844.44,843.75,0.79685322]
[1757001652977,0.79871772,844.41,843.69,0.79685322]
[1757001653176,1.52434562,844.4,843.67,0.79685322]
[1757001653374,0.7256279,844.39,843.67,0.79685322]
[1757001653678,0.79871772,844.38,843.68,0.79685322]
[1757001653973,0.72556694,844.37,843.67,0.79685322]
[1757001654178,0.72556694,844.36,843.67,0.79685322]
[1757001654378,0.72556694,844.36,843.49,1.0624709]
[1757001654379,0.72556694,844.35,843.66,0.79685322]
[1757001654578,0.72556694,844.34,843.65,0.79685322]
[1757001654778,1.5974354,844.8,842.3,3.7186484]
[1757001654779,0.72556694,844.33,843.6,0.79685322]
[1757001655075,0.72556694,844.32,843.6,0.79685322]
[1757001655275,0.72556694,844.31,843.6,0.79685322]
[1757001655479,0.72556694,844.3,843.58,0.79685322]
[1757001655679,0.72556694,844.29,843.58,0.79685322]
[1757001655980,0.72556694,844.28,843.58,0.79685322]
[1757001656279,0.79871772,844.43,843.37,1.0624709]
[1757001656280,0.72556694,844.27,843.57,0.79685322]
[1757001656578,0.79871772,844.4,842.4,2.6561774]
[1757001656579,0.72556694,844.26,843.56,0.79685322]
[1757001656777,0.72556694,844.25,843.56,0.79685322]
[1757001656980,0.72556694,844.24,843.56,0.79685322]
[1757001657178,0.72556694,844.23,843.56,0.79685322]
[1757001657379,0.72556694,844.22,843.56,0.79685322]
[1757001657682,0.79871772,844.39,843.56,0.79685322]
[1757001657882,0.72523256,844.38,843.56,0.79685322]
[1757001659280,0.72523256,844.38,843.55,0.79685322]
[1757001659486,0.72523256,844.37,843.55,0.79685322]
[1757001659683,0.72523256,844.36,843.55,0.79685322]
[1757001659881,0.72523256,844.35,843.55,0.79685322]
[1757001660082,0.72523256,844.34,843.55,0.79685322]
[1757001660286,0.72523256,844.33,843.55,0.79685322]
[1757001660484,0.72523256,844.32,843.55,0.79685322]
[1757001660785,0.72523256,844.31,843.56,0.79685322]
[1757001660985,0.72523256,844.3,843.57,0.79685322]
[1757001661185,0.72523256,844.29,843.57,0.79685322]
[1757001661384,0.72523256,844.28,843.57,0.79685322]
[1757001661585,0.72523256,844.27,843.56,0.79685322]
[1757001661786,0.72523256,844.26,843.56,0.79685322]
[1757001661987,0.72523256,844.25,843.56,0.79685322]
[1757001662186,0.72523256,844.24,843.56,0.79685322]
[1757001662386,1.0649569,844.5,843.56,0.79685322]
[1757001662387,0.72523256,844.23,843.56,0.79685322]
[1757001662592,0.72523256,844.22,843.56,0.79685322]
[1757001662792,0.7248877,844.21,843.56,0.79685322]
[1757001663093,0.7248877,844.21,843.58,0.79685322]
[1757001663390,0.79871772,844.35,843.58,0.79685322]
[1757001663595,0.72481611,844.34,843.58,0.79685322]
[1757001664390,0.72481611,844.34,843.57,0.79685322]
[1757001664893,0.20613793,844.15,843.57,0.79685322]
[1757001665592,0.20613793,844.15,843.43,1.0624709]
[1757001665593,0.20613793,844.15,843.56,0.79685322]
[1757001666789,0.20613793,844.15,843.26,0.20613793]
[1757001666790,0.20613793,844.15,843.55,0.79685322]
[1757001667891,0.20613793,844.15,843.26,0.20613793]
[1757001667892,0.20613793,844.15,843.54,0.79685322]
[1757001668096,0.20613793,844.15,843.53,0.79685322]
[1757001668596,0.20613793,844.15,843.54,0.79685322]
[1757001668797,0.20613793,844.15,843.53,0.79685322]
[1757001669297,0.20613793,844.15,843.54,0.79685322]
[1757001669597,0.20613793,844.15,843.53,0.79685322]
[1757001670199,0.20613793,844.15,843.54,0.79685322]
[1757001672196,0.20613793,844.15,843.55,0.79685322]
[1757001672896,0.20613793,844.15,843.56,0.79685322]
[1757001676098,0.20613793,844.15,843.55,0.79685322]
[1757001676702,0.20613793,844.15,843.56,0.79685322]
[1757001677600,0.20613793,844.15,843.51,0.79685322]
[1757001678103,0.20613793,844.15,843.15,1.5937064]
[1757001678104,0.20613793,844.15,843.52,0.79685322]
[1757001685906,0.20613793,844.15,843.53,0.79685322]
[1757001687006,0.20613793,844.15,843.52,0.79685322]
[1757001687206,0.20613793,844.15,843.54,0.79685322]
[1757001687606,0.20613793,844.15,843.55,0.79685322]
[1757001688510,0.20613793,844.15,843.23,1.5937064]
[1757001688711,0.20613793,844.15,843.13,0.20615931]
[1757001689407,0.20613793,844.15,843.55,0.79639527]
[1757001691012,0.20613793,844.15,843.56,0.79639527]
[1757001691712,0.93244577,844.15,843.56,0.79639527]
[1757001691913,0.20613793,844.15,843.56,0.79639527]
[1757001694407,0.20613793,844.15,843.42,1.0618603]
[1757001694408,0.20613793,844.15,843.57,0.79639527]
[1757001695012,0.20613793,844.15,843.56,0.79639527]
[1757001696216,0.20613793,844.15,843.59,0.79639527]
[1757001696914,0.20613793,844.15,843.6,0.79639527]
[1757001698018,0.20613793,844.15,843.57,0.79639527]
[1757001698218,0.20613793,844.15,843.54,0.79639527]
[1757001698413,0.20613793,844.15,843.52,0.79639527]
[1757001699219,0.20613793,844.15,843.53,0.79639527]
[1757001699419,0.20613793,844.15,843.52,0.79639527]
[1757001700220,0.20613793,844.15,843.53,0.79639527]
[1757001701621,0.20613793,844.15,843.42,0.79639527]
[1757001702322,0.20613793,844.15,843.43,0.79639527]
[1757001703121,0.93314854,844.15,843.43,0.79639527]
[1757001703416,0.72701061,844.14,843.43,0.79639527]
[1757001703616,0.20613793,844.15,843.43,0.79639527]
[1757001703617,0.72701061,844.13,843.43,0.79639527]
[1757001703822,0.72701061,844.12,843.43,0.79639527]
[1757001704023,0.20613793,844.15,843.43,0.79639527]
[1757001704024,0.72701061,844.11,843.43,0.79639527]
[1757001704225,0.72701061,844.1,843.44,0.79639527]
[1757001704418,0.72701061,844.09,843.44,0.79639527]
[1757001704619,0.72701061,844.08,843.44,0.79639527]
[1757001704820,0.72701061,844.07,843.44,0.79639527]
[1757001705019,0.72701061,844.06,843.43,0.79639527]
[1757001705219,0.72701061,844.05,843.44,0.79639527]
[1757001705418,0.20613793,844.15,843.44,0.79639527]
[1757001706120,0.20613793,844.15,843.5,0.79639527]
[1757001706319,0.20613793,844.15,843.03,0.20617702]
[1757001706320,0.20613793,844.15,843.52,0.79639527]
[1757001706624,0.20613793,844.15,843.53,0.79639527]
[1757001706824,0.20613793,844.15,843.54,0.79639527]
[1757001707024,0.20613793,844.15,843.55,0.79639527]
[1757001707224,0.20613793,844.15,843.64,0.79639527]
[1757001707421,0.20613793,844.15,843.03,0.20617702]
[1757001707422,0.20613793,844.15,843.69,0.79639527]
[1757001707625,0.20613793,844.15,843.68,0.79639527]
[1757001707924,0.20613793,844.15,843.03,0.20617702]
[1757001707925,0.20613793,844.15,843.67,0.79639527]
[1757001708220,0.20613793,844.15,843.68,0.79639527]
[1757001708624,0.20613793,844.15,843.35,0.79639527]
[1757001708821,0.20613793,844.15,843.34,0.79639527]
[1757001711121,0.20613793,844.15,843.35,0.79639527]
[1757001711821,0.20613793,844.15,843.34,0.79639527]
[1757001712220,0.20613793,844.15,843.35,0.79639527]
[1757001712422,0.20613793,844.15,843.34,0.79639527]
[1757001714130,0.20613793,844.15,843.36,0.79639527]
[1757001715327,0.20613793,844.15,843.42,0.79639527]
[1757001715724,0.20613793,844.15,843.43,0.79639527]
[1757001717332,0.20613793,844.15,843.44,0.79639527]
[1757001717526,0.20613793,844.15,843.45,0.79639527]
[1757001718427,0.20613793,844.15,843.03,0.20617702]
[1757001718428,0.20613793,844.15,843.52,0.79639527]
[1757001719935,0.20613793,844.15,843.53,0.79639527]
[1757001720932,0.20613793,844.15,843.58,0.79639527]
[1757001721130,0.20613793,844.15,843.7,0.79639527]
[1757001721330,0.20613793,844.15,843.69,0.79639527]
[1757001721734,0.20613793,844.15,843.7,0.79639527]
[1757001721931,0.20613793,844.15,843.72,0.79639527]
[1757001722130,0.20613793,844.15,843.75,0.79639527]
[1757001722436,0.20613793,844.15,843.73,0.79639527]
[1757001722832,0.20613793,844.15,843.72,0.79639527]
[1757001723136,0.20613793,844.15,843.73,0.79639527]
[1757001723332,0.20613793,844.15,843.76,0.79639527]
[1757001723536,0.20613793,844.15,843.75,0.79639527]
[1757001724133,0.79701287,844.51,843.81,0.79639527]
[1757001724337,0.20609521,844.35,843.84,0.79639527]
[1757001724532,0.20609521,844.35,843.85,0.79639527]
[1757001725434,0.20609521,844.35,843.84,0.79639527]
[1757001726137,0.20609521,844.35,843.83,0.79639527]
[1757001726334,0.20609521,844.35,843.79,0.79639527]
[1757001727336,0.20609521,844.35,843.78,0.79639527]
[1757001728242,0.20609521,844.35,843.79,0.79639527]
[1757001728442,0.20609521,844.35,843.78,0.79639527]
[1757001728837,0.20609521,844.35,843.79,0.79639527]
[1757001729237,0.20609521,844.35,843.78,0.79639527]
[1757001730438,0.20609521,844.35,843.77,0.79639527]
[1757001730639,0.20609521,844.35,843.76,0.79639527]
[1757001732440,0.20609521,844.35,843.75,0.79639527]
[1757001734941,0.20609521,844.35,843.55,1.0618603]
[1757001734942,0.20609521,844.35,843.74,0.79639527]
[1757001736147,0.20609521,844.35,843.77,0.79639527]
[1757001736447,0.20609521,844.35,843.76,0.79639527]
[1757001737349,0.20609521,844.35,843.03,0.20617702]
[1757001737350,0.20609521,844.35,843.77,0.79639527]
[1757001737552,0.20609521,844.35,843.76,0.79639527]
[1757001737949,0.20609521,844.35,843.77,0.79639527]
[1757001738150,0.20609521,844.35,843.8,0.79639527]
[1757001738450,0.20609521,844.35,843.79,0.79639527]
[1757001738652,0.20609521,844.35,843.78,0.79639527]
[1757001739553,0.20609521,844.35,843.81,0.79639527]
[1757001740550,0.20609521,844.35,843.8,0.79639527]
[1757001740752,0.20609521,844.35,843.81,0.79639527]
[1757001741255,0.20609521,844.35,843.8,0.79639527]
[1757001741456,0.20609521,844.35,843.79,0.79639527]
[1757001742155,0.20609521,844.35,843.8,0.79639527]
[1757001742455,0.20609521,844.35,843.79,0.79639527]
[1757001743056,0.79701287,844.83,843.82,0.79639527]
[1757001743260,0.20604518,844.57,843.83,0.79639527]
[1757001743455,0.20604518,844.57,843.82,0.79639527]
[1757001744261,0.20604518,844.57,843.81,0.79639527]
[1757001745357,0.20604518,844.57,843.82,0.79639527]
[1757001745555,0.20604518,844.57,843.83,0.79639527]
[1757001746360,0.20604518,844.57,843.82,0.79639527]
[1757001747258,0.20604518,844.57,843.81,0.79639527]
[1757001747558,0.20604518,844.57,843.82,0.79639527]
[1757001748362,0.20604518,844.57,843.81,0.79639527]
[1757001749359,0.20604518,844.57,843.8,0.79639527]
[1757001751660,0.20604518,844.57,843.81,0.79639527]
[1757001752360,0.20604518,844.57,843.8,0.79639527]
[1757001752664,0.20604518,844.57,843.03,0.20617702]
[1757001752665,0.20604518,844.57,843.82,0.79639527]
[1757001752864,0.20604518,844.57,843.84,0.79639527]
[1757001753968,0.20604518,844.57,843.83,0.79639527]
[1757001755362,0.20604518,844.57,843.84,0.79639527]
[1757001757168,0.20604518,844.57,843.67,1.0618603]
[1757001757468,0.20604518,844.57,843.83,0.79354109]
[1757001758065,0.20604518,844.57,843.84,0.79354109]
[1757001760269,0.20604518,844.57,843.69,1.0618603]
[1757001760466,0.20604518,844.57,843.84,0.79350505]
[1757001761270,0.20604518,844.57,843.85,0.79350505]
[1757001762071,0.20604518,844.57,843.8,0.79350505]
[1757001762272,0.20604518,844.57,843.81,0.79350505]
[1757001764373,0.20604518,844.57,843.82,0.79350505]
[1757001765973,0.20604518,844.57,843.83,0.79350505]
[1757001766272,0.20604518,844.57,843.84,0.79350505]
[1757001766477,0.20604518,844.57,843.83,0.79350505]
[1757001769278,0.20604518,844.57,843.84,0.79350505]
[1757001769479,0.20604518,844.57,843.83,0.79350505]
[1757001770480,0.20604518,844.57,843.84,0.79350505]
[1757001771278,0.20604518,844.57,843.85,0.79350505]
[1757001771677,0.20604518,844.57,843.87,0.79350505]
[1757001772379,0.20604518,844.57,843.89,0.79350505]
[1757001773484,0.20604518,844.57,843.9,0.79350505]
[1757001774281,0.20604518,844.57,843.91,0.79350505]
[1757001775486,0.20604518,844.57,843.93,0.79350505]
[1757001776285,0.20604518,844.57,843.95,0.79350505]
[1757001776782,0.20604518,844.57,843.94,0.79350505]
[1757001777486,0.20604518,844.57,843.96,0.79350505]
[1757001778386,0.20604518,844.57,843.97,0.79350505]
[1757001778682,0.20604518,844.57,843.8,1.0618603]
[1757001778683,0.20604518,844.57,843.92,0.79350505]
[1757001779286,0.20604518,844.57,843.03,0.20617702]
[1757001779287,0.20604518,844.57,843.97,0.79350505]
[1757001779782,0.20604518,844.57,843.98,0.79350505]
[1757001780687,0.20604518,844.57,843.97,0.79350505]
[1757001781688,0.20604518,844.57,843.98,0.79350505]
[1757001782489,0.20604518,844.57,843.99,0.79350505]
[1757001783085,0.20604518,844.57,843.97,0.79350505]
[1757001783487,0.20604518,844.57,843.98,0.79350505]
[1757001785088,0.20604518,844.57,843.99,0.79350505]
[1757001785291,0.20604518,844.57,844.0,0.79350505]
[1757001785491,0.20604518,844.57,844.01,0.79350505]
[1757001785692,0.20604518,844.57,843.83,1.0618603]
[1757001785693,0.20604518,844.57,844.0,0.79350505]
[1757001786293,0.20604518,844.57,844.01,0.79350505]
[1757001790091,0.20604518,844.57,844.04,0.79350505]
[1757001790293,0.20604518,844.57,844.06,0.79350505]
[1757001791296,0.20604518,844.57,844.07,0.79350505]
[1757001793093,0.20604518,844.57,844.08,0.79350505]
[1757001794401,0.20604518,844.57,844.09,0.79350505]
[1757001795095,0.20604518,844.57,843.99,0.79350505]
[1757001795895,0.20604518,844.57,844.0,0.79350505]
[1757001796400,0.20604518,844.57,844.01,0.79350505]
[1757001797197,0.20604518,844.57,844.02,0.79350505]
[1757001798303,0.20604518,844.57,844.03,0.79350505]
[1757001798504,0.20604518,844.57,844.06,0.79350505]
[1757001798699,0.20604518,844.57,844.09,0.79350505]
[1757001798903,0.20604518,844.57,844.08,0.79350505]
[1757001799199,0.20604518,844.57,844.11,0.79350505]
[1757001799404,0.20604518,844.57,844.12,0.79350505]
[1757001799600,0.79386405,844.76,844.12,0.79350505]
[1757001799805,0.2060159,844.66,844.13,0.79350505]
[1757001801407,0.2060159,844.66,844.12,0.79350505]
[1757001802205,0.2060159,844.66,844.13,0.79350505]
[1757001802907,0.2060159,844.66,844.15,0.79350505]
[1757001804313,0.79386405,844.74,844.17,0.79350505]
[1757001805811,0.79386405,844.75,844.16,0.79350505]
[1757001806215,0.79386405,844.76,844.16,0.79350505]
[1757001806412,0.20599944,844.78,843.97,1.0618603]
[1757001806716,0.20599944,844.78,843.79,1.5927905]
[1757001807112,0.20599944,844.78,843.04,2.6546509]
[1757001807517,2.6567095,845.87,843.03,0.20617702]
[1757001807815,0.2059653,845.06,843.03,0.20617702]
[1757001808418,0.20596652,845.05,843.03,0.20617702]
[1757001808816,0.20597749,844.96,843.03,0.20617702]
[1757001809819,0.20597871,844.95,843.03,0.20617702]
[1757001810321,0.79867451,844.81,844.17,0.79817551]
[1757001811717,0.79867451,844.8,844.17,0.79817551]
[1757001812216,0.79867451,844.84,844.15,0.79817551]
[1757001812520,0.79867451,844.83,844.15,0.79817551]
[1757001815122,0.79867451,844.84,844.15,0.79817551]
[1757001815318,1.00466419,844.86,844.17,0.79817551]
[1757001815623,1.00466419,844.86,843.03,0.20617702]
[1757001815624,0.79867451,844.84,844.18,0.79817551]
[1757001815819,0.79867451,844.84,844.19,0.79817551]
[1757001817221,0.79867451,844.84,844.18,0.79817551]
[1757001817721,0.79867451,844.84,844.19,0.79817551]
[1757001818422,1.00466419,844.86,844.2,0.79817551]
[1757001818620,0.79867451,844.86,844.2,0.79817551]
[1757001819625,0.79867451,844.83,844.22,0.79817551]
[1757001820521,0.79867451,844.82,844.23,0.79817551]
[1757001820726,0.79867451,844.87,844.27,0.79817551]
[1757001821525,0.79867451,844.87,844.28,0.79817551]
[1757001822126,0.79867451,844.87,844.27,0.79817551]
[1757001822623,0.79867451,844.86,844.27,0.79817551]
[1757001823024,0.79867451,844.85,844.26,0.79817551]
[1757001823224,0.79867451,844.85,844.25,0.79817551]
[1757001824723,0.20596774,844.96,843.27,2.660585]
[1757001824724,0.79867451,844.91,844.21,0.79817551]
[1757001825023,0.79867451,844.91,844.01,1.064234]
[1757001825024,0.79867451,844.91,844.2,0.79817551]
[1757001826224,0.79867451,844.91,844.21,0.79817551]
[1757001826428,0.79867451,844.91,844.2,0.79817551]
[1757001826728,0.79867451,844.9,844.21,0.79817551]
[1757001829831,0.79867451,844.84,844.25,0.79817551]
[1757001830030,0.20596774,844.96,843.94,1.596351]
[1757001830230,0.20596774,844.96,843.03,0.20617702]
[1757001840941,0.79803915,844.94,844.2,0.7964408]
[1757001842038,0.79803915,844.93,844.19,0.7964408]
[1757001842338,0.79803915,844.84,844.13,0.7964408]
[1757001842841,0.79803915,844.83,844.13,0.7964408]
[1757001843142,0.79803915,844.83,844.14,0.7964408]
[1757001844443,0.20596774,844.96,843.03,0.20617702]
[1757001844444,0.79803915,844.84,844.15,0.7964408]
[1757001845343,0.79803915,844.83,844.15,0.7964408]
[1757001846644,0.79803915,844.84,844.15,0.7964408]
[1757001846944,0.20596774,844.96,844.18,0.7964408]
[1757001847142,0.20596774,844.96,844.19,0.7964408]
[1757001847340,0.20596774,844.96,844.18,0.7964408]
[1757001848745,0.20596774,844.96,844.19,0.7964408]
[1757001849245,0.20596774,844.96,844.2,0.7964408]
[1757001849443,0.20596774,844.96,844.31,0.7964408]
[1757001849444,0.79803915,844.92,844.31,0.7964408]
[1757001849642,0.79803915,844.92,844.32,0.7964408]
[1757001849845,0.79803915,844.95,844.33,0.7964408]
[1757001850442,0.20596774,844.96,844.34,0.7964408]
[1757001850846,0.20596774,844.96,844.33,0.7964408]
[1757001851849,0.20596774,844.96,844.34,0.7964408]
[1757001852345,0.20596774,844.96,844.33,0.7964408]
[1757001853749,0.20596774,844.96,844.34,0.7964408]
[1757001855146,0.20596774,844.96,844.35,0.7964408]
[1757001855350,0.20596774,844.96,844.34,0.7964408]
[1757001857051,0.20596774,844.96,843.33,2.6548026]
[1757001857052,0.20596774,844.96,844.35,0.7964408]
[1757001857750,0.20596774,844.96,844.36,0.7964408]
[1757001858149,0.20596774,844.96,844.35,0.7964408]
[1757001858449,0.20596774,844.96,844.36,0.7964408]
[1757001859854,0.20596774,844.96,844.35,0.7964408]
[1757001860455,0.20596774,844.96,844.33,0.7964408]
[1757001860952,0.20596774,844.96,844.34,0.7964408]
[1757001861156,0.20596774,844.96,844.33,0.7964408]
[1757001864957,0.20596774,844.96,844.34,0.7964408]
[1757001865454,0.20596774,844.96,844.42,0.7964408]
[1757001866258,0.20596774,844.96,844.41,0.7964408]
[1757001868360,0.20596774,844.96,844.4,0.7964408]
[1757001868557,0.20596774,844.96,844.39,0.7964408]
[1757001871163,0.20596774,844.96,844.38,0.7964408]
[1757001871361,0.20596774,844.96,844.41,0.7964408]
[1757001873362,0.20596774,844.96,844.4,0.7964408]
[1757001874865,0.20596774,844.96,844.39,0.7964408]
[1757001877065,0.20596774,844.96,844.4,0.7964408]
[1757001878369,0.20596774,844.96,844.39,0.7964408]
[1757001884774,0.20596774,844.96,844.38,0.7964408]
[1757001885869,0.20596774,844.96,844.44,0.7964408]
[1757001888878,0.20596774,844.96,844.49,0.7964408]
[1757001889079,0.20596774,844.96,844.5,0.7964408]
[1757001890281,0.20596774,844.96,844.49,0.7964408]
[1757001891081,0.79803915,845.46,844.5,0.7964408]
[1757001891281,0.20590254,845.06,844.5,0.7964408]
[1757001891482,0.79803915,845.45,844.5,0.7964408]
[1757001891680,0.20590132,845.06,844.5,0.7964408]
[1757001891982,0.79803915,845.44,844.51,0.7964408]
[1757001892181,0.20590132,845.06,844.51,0.7964408]
[1757001892582,0.79803915,845.43,844.51,0.7964408]
[1757001892781,0.20590132,845.06,844.52,0.7964408]
[1757001892985,0.79803915,845.41,844.52,0.7964408]
[1757001893387,0.20590254,845.06,844.52,0.7964408]
[1757001893587,0.79803915,845.4,844.53,0.7964408]
[1757001893790,0.20590193,845.06,844.53,0.7964408]
[1757001893988,0.79803915,845.4,844.53,0.7964408]
[1757001894283,0.20590254,845.06,844.53,0.7964408]
[1757001894483,0.20590254,845.06,844.52,0.7964408]
[1757001894688,0.79803915,845.41,844.52,0.7964408]
[1757001894987,0.20590193,845.06,844.52,0.7964408]
[1757001895187,0.79803915,845.41,844.52,0.7964408]
[1757001895385,0.20590254,845.19,844.53,0.7964408]
[1757001895583,0.20590254,845.19,844.52,0.7964408]
[1757001896390,0.20590254,845.19,844.51,0.7964408]
[1757001898392,0.20590254,845.19,844.52,0.7964408]
[1757001899994,0.20590254,845.19,844.51,0.7964408]
[1757001900493,0.20590254,845.19,844.52,0.7964408]
[1757001901491,0.20590254,845.19,844.53,0.7964408]
[1757001903500,0.20590254,845.19,844.6,0.7964408]
[1757001904695,0.20590254,845.19,843.46,0.20591229]
[1757001904696,0.20590254,845.19,844.56,0.7964408]
[1757001905397,0.20590254,845.19,844.57,0.7964408]
[1757001905697,0.20590254,845.19,844.55,0.7964408]
[1757001906195,0.20590254,845.19,844.49,0.7964408]
[1757001906398,0.20590254,845.19,844.48,0.7964408]
[1757001907195,0.20590254,845.19,844.49,0.7964408]
[1757001909094,0.20590254,845.19,844.43,0.7964408]
[1757001909294,0.20590254,845.19,844.46,0.7964408]
[1757001913195,0.20590254,845.19,844.47,0.7964408]
[1757001915104,0.20590254,845.19,844.48,0.7964408]
[1757001915302,0.20590254,845.19,844.51,0.7964408]
[1757001916005,0.20590254,845.19,844.58,0.7964408]
[1757001919305,0.20590254,845.19,844.59,0.7964408]
[1757001920406,0.20590254,845.19,844.58,0.7964408]
[1757001920804,0.20590254,845.19,844.57,0.7964408]
[1757001921003,0.20590254,845.19,844.59,0.7964408]
[1757001922408,0.20590254,845.19,844.6,0.7964408]
[1757001923611,0.20590254,845.19,844.59,0.7964408]
[1757001924012,0.20590254,845.19,844.58,0.7964408]
[1757001924208,0.20590254,845.19,844.59,0.7964408]
[1757001925009,0.20590254,845.19,844.58,0.7964408]
[1757001925412,0.20590254,845.19,844.59,0.7964408]
[1757001926113,0.20590254,845.19,844.58,0.7964408]
[1757001926510,0.20590254,845.19,844.59,0.7964408]
[1757001926814,0.20590254,845.19,844.6,0.7964408]
[1757001927014,0.20590254,845.19,844.53,0.7964408]
[1757001929420,0.20590254,845.19,844.54,0.7964408]